Cogmind - Beta 11.1 @@@ ROGUE MODE // 2022.09.10 @ 12:34:15 Player: lumberblack Result: Destroyed by as-59308 with Assembled Heavy Rifle Performance ------------- Evolutions (0) 0 Regions Visited (2) 400 Robots Destroyed (12) 60 Value Destroyed (168) 168 Prototype IDs (0) 0 Alien Tech Used (0) 0 Bonus (0) 0 TOTAL SCORE: 628 Bonus ------- None Cogmind --------- Core Integrity 0/250 Matter 300/300 Energy 99/100 System Corruption 0% Temperature Cool (0) Movement Core (50) Location -10/Mines Parts ------- > --- POWER (1) -------- (None) > --- PROPULSION (2) --- (None) > --- UTILITY (2) ------ (None) > --- WEAPON (2) ------- (None) > --- INVENTORY (5) ---- Large Storage Unit High-capacity Storage Unit Large Matter Pod (150) Light Assault Rifle Mining Laser Peak State ------------ > --- POWER ------------ (None) > --- PROPULSION ------- Aluminum Leg Aluminum Leg > --- UTILITY ---------- Small Storage Unit > --- WEAPON ----------- Assault Rifle Light Assault Rifle > --- INVENTORY -------- Ion Engine Light Treads Light Treads Compact Wheel Compact Wheel Assault Rifle [Rating: 5] Favorites ----------- Power None Propulsion Light Treads Treads Light Treads Leg Aluminum Leg Utility Seismic Detector Device Seismic Detector Storage Small Storage Unit Weapon Light Assault Rifle Energy Gun Small Laser Ballistic Gun Light Assault Rifle Special Weapon Mining Laser Build | -11 -10 -10 ------- Run | Scr Mat Min Slots Evolved . | . . . Power . | . . . Propulsion . | . . . Utility . | . . . Weapon . | . . . Parts Attached 11 | 2 6 3 Power . | . . . Engine . | . . . Core . | . . . Reactor . | . . . Propulsion 2 | 2 . . Treads 2 | 2 . . Leg . | . . . Wheel . | . . . Hover . | . . . Flight . | . . . Utility 1 | . 1 . Device 1 | . 1 . Storage . | . . . Processor . | . . . Hackware . | . . . Protection . | . . . Artifact . | . . . Weapon 8 | . 5 3 Energy Gun 1 | . 1 . Energy Cannon . | . . . Ballistic Gun 6 | . 3 3 Ballistic Cannon . | . . . Launcher . | . . . Special Weapon 1 | . 1 . Impact Weapon . | . . . Slashing Weapon . | . . . Piercing Weapon . | . . . Special Melee Weapon . | . . . Unidentified Prototypes . | . . . Parts Lost 5 | . . 5 Power . | . . . Propulsion 2 | . . 2 Utility 1 | . . 1 Weapon 2 | . . 2 Highest Loss Streak 5 | . . 5 To Critical Strikes . | . . . Average Slot Usage (%) 66 | . 67 66 Treads 27 | . 28 26 Device 11 | . 10 13 Energy Gun 6 | . 10 1 Ballistic Gun 21 | . 17 24 Naked Turns 2 | . . 2 Heaviest Build 4 | 3 4 3 Greatest Support 3 | 3 3 3 Greatest Overweight (x) 1 | . 1 . Average Overweight (x) . | . . . Largest Inventory Capacity 8 | 8 5 5 Average Capacity 5 | 5 5 5 Most Carried 6 | 6 5 5 Average Carried 4 | 4 3 4 Final Capacity 5 | 5 5 5 Final Carried 5 | 3 5 5 Class Distribution -------------------- 100% | Mutant Dominant Class ---------------- Mutant | -10/Materials Mutant | -10/Mines Resources | -11 -10 -10 ----------- Run | Scr Mat Min Matter Collected 534 | 260 168 106 Remotely . | . . . Salvage Created 285 | 127 72 86 Parts 26 | 8 5 13 Haulers Intercepted . | . . . Recyclers Shooed . | . . . Parts Field Recycled . | . . . Retrieved Matter . | . . . Parts Self-Destructed . | . . . Prevented . | . . . Kills | -11 -10 -10 ------- Run | Scr Mat Min Combat Hostiles Destroyed 9 | . 2 7 Melee 1 | . . 1 Guns 8 | . 2 6 Classes Destroyed 5 | 2 1 2 Tunneler 3 | 3 . . Recycler 1 | 1 . . Swarmer 6 | . . 6 Grunt 2 | . 2 . Assembled 1 | . . 1 Best Kill Streak 3 | 3 2 3 Combat Bots Only 3 | . 2 3 Max Kills in Single Turn 1 | 1 1 1 Gunslinging . | . . . Exploded . | . . . Melee 1 | . . 1 Uniques/NPCs Destroyed . | . . . Combat | -11 -10 -10 -------- Run | Scr Mat Min Damage Taken 808 | . 60 748 Core 258 | . . 258 Absorbed by Shields . | . . . Core Remaining (%) 100 | 100 . . Volleys Fired 31 | 10 10 11 Largest 2 | 2 2 2 Hottest 100 | 40 100 60 Shots Fired 61 | 20 19 22 Gun 60 | 20 18 22 Cannon . | . . . Launcher . | . . . Special 1 | . 1 . Kinetic 52 | 20 15 17 Thermal 9 | . 4 5 Explosive . | . . . Electromagnetic . | . . . Robot Hit Streak 8 | 5 8 2 Robot Miss Streak 4 | 1 2 4 Penetration Max . | . . . Secondary Targets 2 | . . 2 Max Gunslinging Chain 1 | . . 1 Shots Hit Robots 36 | 13 13 10 Core Hits 19 | 7 6 6 Critical Kills . | . . . Critical Parts Destroyed . | . . . Critical Strikes . | . . . Melee Attacks . | . . . Impact . | . . . Slashing . | . . . Piercing . | . . . Sneak Attacks . | . . . Combat Hostiles . | . . . Follow-up Attacks . | . . . Damage Inflicted 371 | 125 144 102 Guns 366 | 125 144 97 Cannons . | . . . Explosions . | . . . Melee . | . . . Ramming 5 | . . 5 Kinetic 318 | 125 122 71 Thermal 48 | . 22 26 Explosive . | . . . Electromagnetic . | . . . Impact . | . . . Slashing . | . . . Piercing . | . . . Highest Corruption . | . . . Average Corruption . | . . . Corruption Purged . | . . . Corruption Blocked . | . . . Overload Shots . | . . . Overflow Damage . | . . . Projectiles . | . . . Explosions . | . . . Melee . | . . . Knockbacks . | . . . Impact . | . . . Kinetic . | . . . Secondary . | . . . Self-Inflicted Damage . | . . . Shots . | . . . Rammed 2 | . . 2 Targets Rammed 3 | . . 3 Kicked . | . . . Crushed 1 | . . 1 Highest Temperature 35 | . 10 35 Average Temperature 8 | . 7 9 Received Heat Transfer 173 | . 33 140 Siege Activations . | . . . Robots Corrupted . | . . . Combat Hostiles . | . . . Parts Fried . | . . . Impact Corruptions . | . . . Robots Melted . | . . . Combat Hostiles . | . . . Parts Melted . | . . . Heat Transferred 100 | . 50 50 Parts Sabotaged . | . . . Parts Stolen . | . . . Parts Stripped . | . . . Power Chain Reactions . | . . . Missiles Intercepted . | . . . Alert | -11 -10 -10 ------- Run | Scr Mat Min Peak Influence 188 | 20 87 188 Initial 33 | . 13 33 Average 73 | 7 57 126 Maximum Alert Level . | . . . Low Security (%) 100 | 100 100 100 Level 1 . | . . . Level 2 . | . . . Level 3 . | . . . Level 4 . | . . . Level 5 . | . . . High Security . | . . . Max Security . | . . . Squads Dispatched 2 | . 2 . Investigation . | . . . Extermination . | . . . Reinforcement 2 | . 2 . Assault . | . . . Garrison . | . . . Intercept . | . . . Searches Triggered . | . . . Construction Impeded . | . . . Haulers Reinforced . | . . . Active Scanning Responses . | . . . Cargo Convoy Interrupts . | . . . Stealth | -11 -10 -10 --------- Run | Scr Mat Min Distress Signals . | . . . Communications Jammed . | . . . Distress Signals . | . . . Times Spotted 32 | . 4 28 Peak Tracking Total 22 | . 2 22 Tactical Retreats 1 | . . 1 Traps | -11 -10 -10 ------- Run | Scr Mat Min Traps Triggered . | . . . Indirectly . | . . . Trap Hack Attempts . | . . . Triggered . | . . . Disarmed . | . . . Reprogrammed . | . . . Reused . | . . . Traps Extracted . | . . . Installed . | . . . Triggered . | . . . Machines | -11 -10 -10 ---------- Run | Scr Mat Min Machines Disabled . | . . . Max in Single Turn . | . . . Machines Sabotaged . | . . . Garrisons Compromised . | . . . Overloaded Fab Kills . | . . . Hacking | -11 -10 -10 --------- Run | Scr Mat Min Machines Accessed 1 | . 1 . Terminals 1 | . 1 . Fabricators . | . . . Repair Stations . | . . . Recycling Units . | . . . Scanalyzers . | . . . Garrison Access . | . . . Total Hacks 4 | . 4 . Successful 2 | . 2 . Failed 1 | . 1 . Catastrophic . | . . . Database Lockouts 1 | . 1 . Manual 4 | . 4 . Terminals 4 | . 4 . Fabricators . | . . . Repair Stations . | . . . Recycling Units . | . . . Scanalyzers . | . . . Garrison Access . | . . . Terminal Hacks 2 | . 2 . Robot Analysis 2 | . 2 . Fabricator Hacks . | . . . Repair Station Hacks . | . . . Recycling Unit Hacks . | . . . Scanalyzer . | . . . Garrison Access Hacks . | . . . Unauthorized Hacks . | . . . Terminals . | . . . Fabricators . | . . . Repair Stations . | . . . Recycling Units . | . . . Scanalyzers . | . . . Garrison Access . | . . . Data Cores Recovered . | . . . Used . | . . . Hacking Detections 1 | . 1 . Full Trace Events . | . . . Feedback Events . | . . . Feedback Blocked . | . . . Robot Schematics Acquired . | . . . Robots Built . | . . . Authchips . | . . . Time . | . . . Total Robot Build Rating . | . . . Part Schematics Acquired . | . . . Parts Built . | . . . Authchips . | . . . Time . | . . . Total Part Build Rating . | . . . Parts Repaired . | . . . Time . | . . . Parts Recycled . | . . . Recycled Matter . | . . . Retrieved Matter . | . . . Retrieved Components . | . . . Parts Scanalyzed . | . . . Part Schematics Acquired . | . . . Parts Damaged . | . . . Bothacking | -11 -10 -10 ------------ Run | Scr Mat Min Used RIF Installer . | . . . Robots Hacked . | . . . Non-combat . | . . . Combat . | . . . Robot Hacks Applied . | . . . Relay Couplers Released . | . . . Fabnet Peak Effective % . | . . . Robots Rewired . | . . . Allies Hacked . | . . . Hacks Repelled . | . . . Allies | -11 -10 -10 -------- Run | Scr Mat Min Total Allies . | . . . Largest Group . | . . . Highest-Rated Group . | . . . Highest-Rated Ally . | . . . Total Orders . | . . . Ally Attacks . | . . . Total Damage . | . . . Kills . | . . . Allies Corrupted . | . . . Allies Melted . | . . . Intel | -11 -10 -10 ------- Run | Scr Mat Min Robot Analysis Total 2 | . 2 . Derelict Logs Recovered 1 | . . 1 Drone Launches . | . . . Drone Recoveries . | . . . Exploration | -11 -10 -10 ------------- Run | Scr Mat Min Turns Passed 419 | 85 175 159 Spaces Moved 424 | 27 169 228 Core 424 | 27 169 228 Treads . | . . . Legs . | . . . Wheels . | . . . Hover . | . . . Flight . | . . . Fastest Speed 50 | 50 50 50 Average Speed 50 | 50 51 50 Slowest Speed 100 | 50 100 50 Overloaded Moves . | . . . Propulsion Burnouts . | . . . Robots Hopped . | . . . Cave-ins Triggered . | . . . Exploration Rate (%) 27 | 3 24 54 Regions Visited 2 Branch Regions 1 Pre-discovered Areas . | . . . Known Exits Taken . | . . . Unknown Exits Taken 2 | 1 1 . Scrap Searched 1 | . . 1 Spaces Dug 1 | . 1 . Terrain Destroyed 1 | . 1 . Melee . | . . . Projectile 1 | . 1 . AOE . | . . . Terrain Rammed . | . . . Walls Destroyed . | . . . Machines Disabled . | . . . Actions | -11 -10 -10 --------- Run | Scr Mat Min Total 571 | 83 234 254 Wait 87 | 36 47 4 Move 422 | 26 168 228 Hop . | . . . Pick Up 5 | 2 2 1 Fast Attach 2 | . 1 1 Attach 3 | 2 1 . Detach 1 | . 1 . Swap 6 | . 4 2 Drop 11 | 7 . 4 Fire 31 | 10 10 11 Melee . | . . . Ram . | . . . Kick . | . . . Crush 3 | . . 3 Escape Stasis . | . . . Rewire . | . . . Trap . | . . . Miscellaneous . | . . . Route ------- -11/Scrapyard -10/Materials -10/Mines (discovered 2 exits: [*Mat x2]) History --------- Turn | Location | Event 8 | -11/Scrapyard | Discovered new exit (range 3) 86 | -11/Scrapyard | Entered Materials 186 | -10/Materials | Discovered new exit (range 9) 204 | -10/Materials | Central database locked down 261 | -10/Materials | Entered Mines 292 | -10/Mines | Discovered new exit (range 5) 293 | -10/Mines | Learned 2 Materials zone layouts 302 | -10/Mines | Build established: Mutant 364 | -10/Mines | Discovered new exit (range 6) 386 | -10/Mines | Assembled infested the area 418 | -10/Mines | Core integrity fell below 50% 419 | -10/Mines | Core integrity fell below 20% 420 | -10/Mines | Destroyed by as-59308 with Assembled Heavy Rifle Last Messages --------------- 00356_ Switching to secondary target: S-10 Pest. 00361_ S-10 Pest destroyed. 00364_ Acquired 11 matter. 00364_ EXIT=FOUND 00366_ Acquired 15 matter. 00367_ Dropped Lgt. Assault Rifle. 00369_ Acquired 16 matter. 00386_ ALERT: Infestation in the mines, dispatching Demolisher response squad. 00395_ C-30 ARC bursts open, deploying its payload. 00395_ D-53 Grenadier unfolds itself. 00413_ Slammed into as-17090. 00413_ Lgt. Assault Rifle destroyed. 00414_ Crushed as-17090. 00414_ as-17090 destroyed. 00415_ Acquired 3 matter. 00415_ Lgt. Assault Rifle destroyed. 00416_ Slammed into as-26577. 00416_ Lgt. Treads destroyed. 00418_ Seismic Detector destroyed. Map ----- +----------------------------------------------------+ | #???????????????????????????????????? | | ##?????????????????????????????????? | | #?????????????????????????????????? | | #?????????????????????????????????? | | ##????????????????????????????????? | | ###############??????????????????? | | #??????????????????? | | #???####???????????? | | ########### #??## ####????????? | | ##????????# #### ##?####??? | | # ###??????# ### ##?? | | ## ##?????# ##? | | #?????####### #? | | #???????????## #? | | ##????????????## ### " ##? | | #??????????????####?## #?? | | ##????????????????????# #?? | | #?????????????????????# #?? | | # ###?????????????????????# ##?? | | #####???????????????????????#aa ##??? | | ???????????????????????????## a#???? | | ??????????????????????????##a ##??? | | ?????????????????????????##a a ##?? | | ????????????????????????## aaaaa #?? | | ????????????????????????# !% #? | | ????????????????????????#@ a a #? | | ????????????????????????## ##? | | ?????????????????????????# #?? | | ?????????????????????????# #?? | | ????????????????????????? #? | | ????????????????????????# #? | | ????????????????????????# #? | | ???????????????????????? ##? | | ???????????????????????? #####?? | | ???????????????????????### ##?????? | | ?????????????????????????## #??????? | | ??????????????????????????? #??????? | | ??????????????????????????? #??????? | | ??????????????????????????? #??????? | | ????????????????????????????????????? | | ????????????????????????????????????? | | ????????????????????????????????????? | | ????????????????????????????????????? | | ????????????????????????????????????? | | ????????????????????????????????????? | | ????????????????????????????????????? | | ????????????????????????????????????? | | ????????????????????????????????????? | | ????????????????????????????????????? | | ????????????????????????????????????? | +----------------------------------------------------+ Best States ------------- Heat Dissipation 25 Energy Generation 5 Energy Capacity 100 Matter Stores 300 Matter Capacity 300 Sight Range 16 Terrain Scan Density 10 Evasion (%) 50 Recoil Reduction 2 Item Schematics ----------------- None Robot Schematics ------------------ None Fabricated ------------ Nothing Alien Tech Used ----------------- None Achievements -------------- None Challenges ------------ None Game ------ Seed InsulatedLobotomyProtomatter Manual? 0 Play Time 00:09:42 Cumulative 396.6 hours Start 2022.09.10 @ 12:17:09 End 2022.09.10 @ 12:34:15 Sessions 1 Manual Loads 0 Difficulty Rogue Special Mode None Game No. 409 Rogue 409 Adventurer 0 Explorer 0 Win Type - Total 8 Types 5/1/2/0/0/0/0/0/0 Lore% 58 Gallery% 78 Achievement% 65 Wizard Run 0 Options --------- ASCII 0 Keyboard 0 Movement Numpad Keybinds 0 Fullscreen 2 Font 18/TerminusBold Map View 76x50 Tactical HUD 1 Map Filters NONE Filters NONE Steam 1 RUN: 6ef47052-3761-43d9-b40a-78ff051e0638